Workbook

Sheet 1. Forside
A1: Silkeborg Spildevand A/S
D8: Bilag A
D13: Indholdsfortegnelse
C16: Fane nr. 2 | D16: Samlet prisloft
C17: Fane nr. 3 | D17: Driftsomkostninger
C18: Fane nr. 4 | D18: Historiske investeringer
C19: Fane nr. 5 | D19: Gennemførte investeringer
C20: Fane nr. 6 | D20: Korrektion investeringer
C21: Fane nr. 7 | D21: Planlagte investeringer
C22: Fane nr. 8 | D22: 1:1 omkostninger
C23: Fane nr. 9 | D23: Miljø- og servicemål
C24: Fane nr. 10 | D24: Klimatilpasning
C25: Fane nr. 11 | D25: Nettofinansielle poster
C26: Fane nr. 12 | D26: Over- eller underdækning
C27: Fane nr. 13 | D27: Kontrol med indtægtsrammen og oversigt over ekstraordinære effektiviseringsgevinster

Sheet 2. Samlet prisloft
A1: ='1. Forside'!A1 -> Silkeborg Spildevand A/S
B4: Fane 2. Samlet prisloft for 2015
B6: Driftsomkostninger
B7: Driftsomkostninger i prisloftet for 2014 | C7: ='3. Driftsomkostninger'!C20 -> 45147899.61 | D7: kr.
B8: Bortfald af væsentlige omkostninger | C8: =-'3. Driftsomkostninger'!C16 -> 0 | D8: kr.
B9: Korrektion for prisudviklingen 2014-2015 | C9: ='3. Driftsomkostninger'!C22 -> 36118.31969 | D9: kr.
B10: Forhøjelse til effektivt niveau iht. benchmarkingen | C10: ='3. Driftsomkostninger'!C28 -> 0 | D10: kr.
B11: Korrektion for generelt effektiviseringskrav | C11: =-'3. Driftsomkostninger'!C34 -> -198650.7583 | D11: kr.
B12: Korrektion for individuelt effektiviseringskrav | C12: =-'3. Driftsomkostninger'!C43 -> -1784470.732 | D12: kr.
B13: Driftsomkostninger i alt | C13: =SUM(C7:C12) -> 43200896.44 | D13: kr. | E13: =C13 -> 43200896.44 | F13: kr.
B14: Investeringer
B15: Tillæg for historiske investeringer | C15: ='4. Historiske investeringer'!C9 -> 82367331.27 | D15: kr.
B16: Tillæg for gennemførte investeringer i 2011-2013 | C16: ='5. Gennemførte investeringer'!F34 -> 5733894.073 | D16: kr.
B17: Korrektion af tillæg for planlagte investeringer vedrørende 2013 | C17: ='6. Korrektion investeringer'!C10 -> -90232.66667 | D17: kr.
B18: Tillæg for planlagte investeringer i 2014 og 2015 | C18: ='7. Planlagte investeringer'!F24 -> 3386273.333 | D18: kr.
B19: Investeringstillæg i alt | C19: =SUM(C15:C18) -> 91397266.01 | D19: kr. | E19: =C19 -> 91397266.01 | F19: kr.
B20: Øvrige omkostninger mv.
B21: Tillæg for 1:1 omkostninger i 2015 | C21: ='8. 1-1 omkostninger'!C11 -> 2303000 | D21: kr.
B22: Tillæg vedr. revisorerklæringer og DANVA/FVD-kontingent | C22: ='8. 1-1 omkostninger'!C19 -> 170000 | D22: kr.
B23: Korrektion ift. faktiske 1:1 omkostninger i 2013 | C23: ='8. 1-1 omkostninger'!C25 -> -2113671 | D23: kr.
B24: Tillæg for driftsomkostninger til miljø- og servicemål i 2015 | C24: ='9. Miljø- og servicemål'!C8 -> 0 | D24: kr.
B25: Korrektion ift. faktiske driftsomkostninger til miljø- og servicemål i 2013 | C25: ='9. Miljø- og servicemål'!C15 -> 0 | D25: kr.
B26: Tillæg for driftsomkostninger til medfinansiering af klimatilpasningsprojekter i 2015 | C26: ='10. Klimatilpasning'!C9 -> 0 | D26: kr.
B27: Korrektion ift. faktiske omkostninger til medfinansiering af klimatilpasningsprojekter i 2013 | C27: ='10. Klimatilpasning'!C16 -> 0 | D27: kr.
B28: Tillæg/fradrag for nettofinansielle poster i 2015 | C28: ='11. Nettofinansielle poster'!C9 -> -150000 | D28: kr.
B29: Korrektion ift. faktiske nettofinansielle poster i 2013 | C29: ='11. Nettofinansielle poster'!C16 -> 316000 | D29: kr.
B30: Øvrige omkostninger mv. i alt | C30: =SUM(C21:C29) -> 525329 | D30: kr. | E30: =C30 -> 525329 | F30: kr.
B31: Historisk over- eller underdækning
B32: Tillæg/fradrag for over- eller underdækning til og med 2010 | C32: ='12. Over- eller underdækning'!C11 -> 0 | D32: kr. | E32: =C32 -> 0 | F32: kr.
B33: Korrektion i forhold til tidligere indtægtsramme
B34: Korrektion for overholdelse af indtægtsramme i prisloft 2013 | C34: ='13. Kontrol med indtægtsrammen'!E27 -> 3258681.119 | D34: kr. | E34: =C34 -> 3258681.119 | F34: kr.
B35: Samlet prisloft
B36: Indtægtsramme i 2015 | E36: =SUM(E13:E34) -> 138382172.6 | F36: kr.
B37: Debiteret vandmængde i 2013 | E37: 3716743 | F37: m3
B38: Prisloft 2015 | E38: =E36/E37 -> 37.23210687 | F38: kr./m3

Sheet 3. Driftsomkostninger
A1: ='1. Forside'!A1 -> Silkeborg Spildevand A/S
B4: Fane 3. Driftsomkostninger
B6: Driftsomkostningerne i prisloftet for 2014
B7: Korrigerede driftsomkostninger i prisloftet for 2013 (DOiPL 2013) | C7: 45390548.38 | D7: kr.
B8: Prisfremskrivning 1,5 pct. | C8: =0.015*SUM(C7:C7) -> 680858.2257 | D8: kr.
B9: Generelt effektiviseringskrav (0 pct.) | C9: 0 | D9: kr.
B10: Individuelt effektiviseringskrav | C10: -923507 | D10: kr.
B11: Driftsomkostningerne i prisloftet for 2014 (DOiPL 2014) | C11: =SUM(C7:C10) -> 45147899.61 | D11: kr.
B14: Korrektion for forventet bortfald af væsentlige omkostninger
B15: Selskabets indberettede bortfald af væsentlige omkostninger inden 2015 | C15: 0 | D15: kr.
B16: Korrektion for forventet bortfald | C16: =SUM(C15:C15) -> 0 | D16: kr.
B19: Korrektion for prisudviklingen fra 2014-2015
B20: Driftsomkostningerne i prisloftet for 2014 | C20: =C11-C16 -> 45147899.61 | D20: kr.
B21: Prisudvikling 2014 - 2015 | C21: 0.08 | D21: pct.
B22: Korrektion for prisudvikling | C22: =C20*(C21/100) -> 36118.31969 | D22: kr.
B25: Eventuel forhøjelse til effektivt niveau iht. benchmarkingen
B26: Selskabets effektive driftsomkostninger iht. benchmarkingen | C26: 32036949.56 | D26: kr.
B27: Selskabets pristalskorrigerede driftsomkostninger i 2015-niveau | C27: =C20+C22 -> 45184017.93 | D27: kr.
B28: Eventuel forhøjelse til effektivt niveau | C28: =IF(C27>C26,0,C26-C27) -> 0 | D28: kr.
B31: Korrektion for generelt effektiviseringskrav
B32: Driftsomkostningerne i prisloftet for 2014 | C32: =C20 -> 45147899.61 | D32: kr.
B33: Generelt effektiviseringskrav | C33: 0.44 | D33: pct.
B34: Endeligt generelt effektiviseringskrav | C34: =C32*(C33/100) -> 198650.7583 | D34: kr.
B37: Korrektion for individuelt effektiviseringskrav
B38: Rå effektiviseringspotentiale | C38: 13110950.05 | D38: kr.
B39: Effektiviseringspotentiale efter eventuel korrektion for særlige forhold | C39: 13110950.05 | D39: kr.
B40: Effektiviseringspotentiale efter forsigtighedshensyn | C40: 7137882.928 | D40: kr.
B41: Effektiviseringspotentiale efter eventuel korrektion for sammensætning af signifikante costdrivere | C41: 7137882.928 | D41: kr.
B42: Umiddelbart effektiviseringskrav | C42: =C41/4 -> 1784470.732 | D42: kr.
B43: Endeligt individuelt effektiviseringskrav | C43: =IF(C42>0.05*C20,0.05*C20,IF(C42<0.01*C20,0,C42)) -> 1784470.732 | D43: kr.

Sheet 4. Historiske investeringer
A1: ='3. Driftsomkostninger'!A1 -> Silkeborg Spildevand A/S
B4: Fane 4. Historiske investeringer
B6: Tillæg for historiske investeringer
B7: Værdi af selskabets materielle anlægsaktiver pr. 1. januar 2010 | C7: 3557621206 | D7: kr.
B8: Den årlige standardafskrivning på de materielle anlægsaktiver iht. POLKA | C8: 82367331.27 | D8: kr.
B9: Tillæg i alt i 2015 | C9: =C8 -> 82367331.27 | D9: kr.

Sheet 5. Gennemførte investeringer
A1: ='4. Historiske investeringer'!A1 -> Silkeborg Spildevand A/S
B4: Fane 5. Gennemførte investeringer i 2010 - 2013
B6: Tillæg for gennemførte investeringer i 2013
B7: Beskrivelse af investeringen | C7: Årstal | D7: Std. levetid (år) | E7: Anskaffelses-pris (kr.) | F7: Afskrivning
B8: Ledningsnet = Ø 200 mm | C8: 2013 | D8: 75 | E8: 8692000 | F8: =E8/D8 -> 115893.3333 | G8: kr.
B9: Ø 200 mm < Ledningsnet = Ø 500 mm | C9: 2013 | D9: 75 | E9: 8215000 | F9: =E9/D9 -> 109533.3333 | G9: kr.
B10: Ø 500 mm < Ledningsnet = Ø 800 mm | C10: 2013 | D10: 75 | E10: 2271000 | F10: 30280 | G10: kr.
B11: Ø 800 mm < Ledningsnet = Ø 1000 mm | C11: 2013 | D11: 75 | E11: 2355000 | F11: 31400 | G11: kr.
B12: Ø 1000 mm < Ledningsnet = Ø 1200 mm | C12: 2013 | D12: 75 | E12: 2148000 | F12: 28640 | G12: kr.
B13: Ø 1200 mm < Ledningsnet = Ø 1600 mm | C13: 2013 | D13: 75 | E13: 14268000 | F13: 190240 | G13: kr.
B14: Ledningsnet > Ø 1600 mm (rørbassiner og transportledninger) | C14: 2013 | D14: 75 | E14: 1365000 | F14: 18200 | G14: kr.
B15: Strømpeforing = Ø 200 mm | C15: 2013 | D15: 50 | E15: 1009000 | F15: 20180 | G15: kr.
B16: Strømpeforing Ø 200 mm < Ledningsnet = Ø 500 mm | C16: 2013 | D16: 50 | E16: 1134000 | F16: 22680 | G16: kr.
B17: Strømpeforing Ø 500 mm < Ledningsnet = Ø 800 mm | C17: 2013 | D17: 50 | E17: 109000 | F17: 2180 | G17: kr.
B18: Brønde | C18: 2013 | D18: 75 | E18: 7380000 | F18: 98400 | G18: kr.
B19: Stik | C19: 2013 | D19: 75 | E19: 5886000 | F19: 78480 | G19: kr.
B20: Pumpestationer i brønde (< 6,25 m2), Konstruktioner | C20: 2013 | D20: 50 | E20: 4140000 | F20: 82800 | G20: kr.
B21: Kælder | C21: 2013 | D21: 75 | E21: 2887000 | F21: 38493.33333 | G21: kr.
B22: Indløb med riste, Konstruktioner | C22: 2013 | D22: 60 | E22: 1148000 | F22: 19133.33333 | G22: kr.
B23: Indløb med riste, Mek/EL | C23: 2013 | D23: 20 | E23: 5376000 | F23: 268800 | G23: kr.
B24: Indløb med riste, SRO | C24: 2013 | D24: 10 | E24: 808000 | F24: 80800 | G24: kr.
B25: Jordbassin Klasse B | C25: 2013 | D25: 50 | E25: 2159000 | F25: 43180 | G25: kr.
B26: Indløb-/udløbsarrangement | C26: 2013 | D26: 75 | E26: 1280000 | F26: 17066.66667 | G26: kr.
B27: Værksteder, garager | C27: 2013 | D27: 75 | E27: 672000 | F27: 8960 | G27: kr.
B28: Køretøjer, små lastvogne (< 3.500 kg.) | C28: 2013 | D28: 5 | E28: 583000 | F28: 116600 | G28: kr.
B29: Mindre renseanlæg < 5.000 PE uden mulighed for opdeling | C29: 2013 | D29: 40 | E29: 246000 | F29: 6150 | G29: kr.
B30: Tryksatte minipumpestationer (husstandssystemer) | C30: 2013 | D30: 30 | E30: 563000 | F30: 18766.66667 | G30: kr.
B31: Arbejdsplads | C31: 2013 | D31: 5 | E31: 1365000 | F31: 273000 | G31: kr.
B32: Tillæg for 2013 | F32: =SUM(F8:F31) -> 1719856.667 | G32: kr.
B33: Tillæg for 2010 - 2012 | F33: 4014037.407 | G33: kr.
B34: Samlet tillæg for gennemførte investeringer | F34: =F32+F33 -> 5733894.073 | G34: kr.

Sheet 6. Korrektion investeringer
A1: ='5. Gennemførte investeringer'!A1 -> Silkeborg Spildevand A/S
B4: Fane 6. Korrektion af tillæg for planlagte investeringer
B6: Korrektion af tillæg for planlagte investeringer vedr. 2013
B7: Tillæg for planlagte investeringer i 2013 i prisloft 2013 | C7: 1864773 | D7: kr.
B8: Tillæg for planlagte investeringer i 2013 i prisloft 2014 | C8: 1665173 | D8: kr.
B9: Selskabets faktiske afskrivninger på gennemførte investeringer i 2013 | C9: ='5. Gennemførte investeringer'!F32 -> 1719856.667 | D9: kr.
B10: Korrektion af tillæg for planlagte investeringer vedr. 2013 | C10: =C9-C7+C9-C8 -> -90232.66667 | D10: kr.

Sheet 7. Planlagte investeringer
A1: ='6. Korrektion investeringer'!A1 -> Silkeborg Spildevand A/S
B4: Fane 7. Planlagte investeringer
B6: Tillæg for planlagte investeringer i 2014 og 2015
B7: Beskrivelse af investeringen | C7: Årstal | D7: Std. levetid (år) | E7: Anskaffelses-pris (kr.) | F7: Afskrivning
B8: Ø 200 mm < Ledningsnet = Ø 500 mm | C8: 2014 | D8: 75 | E8: 57795000 | F8: =E8/D8 -> 770600 | G8: kr.
B9: Strømpeforing = Ø 200 mm | C9: 2014 | D9: 50 | E9: 5500000 | F9: =E9/D9 -> 110000 | G9: kr.
B10: Beluftningstanke, Konstruktioner | C10: 2014 | D10: 60 | E10: 1740000 | F10: =E10/D10 -> 29000 | G10: kr.
B11: Pumpestationer i brønde (< 6,25 m2), Konstruktioner | C11: 2014 | D11: 50 | E11: 11954000 | F11: 239080 | G11: kr.
B12: Pumpestationer i brønde (< 6,25 m2), Mek/EL | C12: 2014 | D12: 20 | E12: 4973000 | F12: 248650 | G12: kr.
B13: Pumpestationer i brønde (< 6,25 m2), SRO | C13: 2014 | D13: 10 | E13: 1113000 | F13: 111300 | G13: kr.
B14: Køretøjer, små lastvogne (< 3.500 kg.) | C14: 2014 | D14: 5 | E14: 1100000 | F14: 220000 | G14: kr.
B15: Ø 200 mm < Ledningsnet = Ø 500 mm | C15: 2015 | D15: 75 | E15: 58163000 | F15: 775506.6667 | G15: kr.
B16: Strømpeforing = Ø 200 mm | C16: 2015 | D16: 50 | E16: 4000000 | F16: 80000 | G16: kr.
B17: Beluftningstanke, Konstruktioner | C17: 2015 | D17: 60 | E17: 2800000 | F17: 46666.66667 | G17: kr.
B18: Pumpestationer i brønde (< 6,25 m2), Konstruktioner | C18: 2015 | D18: 50 | E18: 9496000 | F18: 189920 | G18: kr.
B19: Pumpestationer i brønde (< 6,25 m2), Mek/EL | C19: 2015 | D19: 20 | E19: 5187000 | F19: 259350 | G19: kr.
B20: Pumpestationer i brønde (< 6,25 m2), SRO | C20: 2015 | D20: 10 | E20: 1462000 | F20: 146200 | G20: kr.
B21: Køretøjer, små lastvogne (< 3.500 kg.) | C21: 2015 | D21: 5 | E21: 800000 | F21: 160000 | G21: kr.
B22: Tillæg for 2014 | F22: =SUMIF(C8:C21,"2014",F8:F21) -> 1728630 | G22: kr.
B23: Tillæg for 2015 | F23: =SUMIF(C8:C21,"2015",F8:F21) -> 1657643.333 | G23: kr.
B24: Tillæg i alt | F24: =F22+F23 -> 3386273.333 | G24: kr.

Sheet 8. 1-1 omkostninger
A1: ='7. Planlagte investeringer'!A1 -> Silkeborg Spildevand A/S
B4: Fane 8. 1:1 omkostninger
B6: Tillæg for budgetterede 1:1 omkostninger i 2015
B7: Betaling til Forsyningssekretariatet | C7: 33000 | D7: kr.
B8: Spildevandsafgift | C8: 800000 | D8: kr.
B9: Tjenestemandspensioner | C9: 370000 | D9: kr.
B10: Ejendomsskatter | C10: 1100000 | D10: kr.
B11: Tillæg i alt | C11: =SUM(C7:C10) -> 2303000 | D11: kr.
B16: Tillæg for budgetterede nødvendige udgifter til revisorerklæringer samt ordinært medlemskab af DANVA og FVD i 2015
B17: Betaling for ordinært medlemskab af DANVA/FVD | C17: 155000 | D17: kr.
B18: Betaling for revisorerklæringer | C18: 15000 | D18: kr.
B19: Tillæg i alt | C19: =SUM(C17:C18) -> 170000 | D19: kr.
B22: Korrektion af tillæg for faktiske 1:1 omkostninger (inkl. revisorerklæringer og ordinært medlemskab af DANVA/FVD) i 2013
B23: Selskabets faktiske 1:1 omkostninger mv. i 2013, jf. reguleringsregnskabet | C23: 669329 | D23: kr.
B24: Tillæg for budgetterede 1:1 omkostninger mv. i prisloft 2013 | C24: 2783000 | D24: kr.
B25: Korrektion af tillæg for budgetterede 1:1 omkostninger mv. i 2013 | C25: =C23-C24 -> -2113671 | D25: kr.

Sheet 9. Miljø- og servicemål
A1: ='8. 1-1 omkostninger'!A1 -> Silkeborg Spildevand A/S
B4: Fane 9. Driftsomkostninger til miljø- og servicemål
B6: Tillæg for budgetterede driftsomkostninger til miljø- og servicemål i 2015
C7: 0 | D7: kr.
B8: Tillæg i alt | C8: =SUM(C7:C7) -> 0 | D8: kr.
B12: Korrektion af tillæg for faktiske driftsomkostninger til miljø- og servicemål i 2013
B13: Selskabets faktiske driftsomkostninger til miljø- og servicemål i 2013, jf. reguleringsregnskabet | C13: 0 | D13: kr.
B14: Tillæg for budgetterede driftsomkostninger til miljø- og servicemål i prisloft 2013 | C14: 0 | D14: kr.
B15: Korrektion af tillæg for budgetterede driftsomkostninger til miljø- og servicemål i 2013 | C15: =C13-C14 -> 0 | D15: kr.

Sheet 10. Klimatilpasning
A1: ='9. Miljø- og servicemål'!A1 -> Silkeborg Spildevand A/S
B4: Fane 10. Medfinansiering af klimatilpasningsprojekter
B7: Tillæg for budgetterede omkostninger til medfinansiering af klimatilpasningsprojekter i 2015
C8: 0 | D8: kr.
B9: Tillæg i alt | C9: =SUM(C8:C8) -> 0 | D9: kr.
B13: Korrektion af tillæg for faktiske omkostninger til medfinansiering af klimatilpasningsprojekter i 2013
B14: Selskabets faktiske driftsomkostninger til klimatilpasningsprojekter i 2013, jf. reguleringsregnskabet | C14: 0 | D14: kr.
B15: Tillæg for budgetterede driftsomkostninger til klimatilpasningsprojekter i prisloft 2013 | C15: 0 | D15: kr.
B16: Korrektion af tillæg for budgetterede omkostninger til klimatilpasningsprojekter i 2013 | C16: =C14-C15 -> 0 | D16: kr.

Sheet 11. Nettofinansielle poster
A1: ='10. Klimatilpasning'!A1 -> Silkeborg Spildevand A/S
B4: Fane 11. Nettofinansielle poster
B6: Tillæg for budgetterede nettofinansielle poster i 2015
B7: Budgetterede renteudgifter og gebyrer i 2015 | C7: 0 | D7: kr.
B8: Budgetterede renteindtægter i 2015 | C8: 150000 | D8: kr.
B9: Tillæg/fradrag i alt | C9: =C7-C8 -> -150000 | D9: kr.
B13: Korrektion af tillæg for faktiske nettofinansielle poster i 2013
B14: Selskabets faktiske nettofinansielle poster i 2013, jf. reguleringsregnskabet | C14: -184000 | D14: kr.
B15: Tillæg for budgetterede nettofinansielle poster i prisloft 2013 | C15: -500000 | D15: kr.
B16: Korrektion af tillæg for budgetterede nettofinansielle poster i 2013 | C16: =C14-C15 -> 316000 | D16: kr.

Sheet 12. Over- eller underdækning (hidden)
A1: ='11. Nettofinansielle poster'!A1 -> Silkeborg Spildevand A/S
B4: Fane 12. Over- eller underdækning til og med 2010
B6: Tillæg/fradrag for over- eller underdækning til og med 2010
B7: Opgjort over- eller underdækning per 31. december 2010 | C7: 0 | D7: kr.
B8: Heraf beløb indregnet i prislofterne for 2012 - 2014 | C8: 0 | D8: kr.
B9: Endnu ikke indregnet over- eller underdækning | C9: =C7-C8 -> 0 | D9: kr.
B10: Resterende indregningsperiode (fastsat i prisloftet for 2012) | C10: 0 | D10: år
B11: Tillæg/fradrag i alt | C11: =IF(C7=0,0,C9/C10) -> 0 | D11: kr.

Sheet 13. Kontrol med indtægtsrammen
A1: ='12. Over- eller underdækning'!A1 -> Silkeborg Spildevand A/S
B4: Fane 13. Korrektion for overholdelse af indtægtsrammen i prisloftet for 2013
B6: Samlet opgørelse vedrørende overholdelse af indtægtsrammen i prisloftet for 2013
B7: Indtægtsramme i prisloftet for 2013 | E7: 145301607 | F7: kr.
B8: Ikke anvendt likviditet vedrørende investeringer i 2013
B9: Tillæg for historiske investeringer | C9: 82679252.5 | D9: kr.
B10: Tillæg for gennemførte investeringer i 2011 | C10: 2411694 | D10: kr.
B11: Korrektion af tillæg for planlagte investeringer i 2011 | C11: -884820 | D11: kr.
B12: Tillæg for planlagte investeringer i 2012 og 2013 | C12: 3673123 | D12: kr.
B13: Indtægter fra tilslutningsbidrag | C13: 6716000 | D13: kr.
B14: Indtægter fra salg af anlægsaktiver | C14: 668000 | D14: kr.
B15: Erstatninger vedr. anlægsaktiver mv. | C15: 0 | D15: kr.
B16: Ekstraordinær effektiviseringsgevinst anvendt til investeringer | C16: 14423676.38 | D16: kr.
B17: Udgifter til investeringer | C17: -77085000 | D17: kr.
B18: Ikke anvendt likviditet vedr. investeringer i alt | C18: =SUM(C9:C17) -> 32601925.88 | D18: kr. | E18: =IF(C18<0,0,-C18) -> -32601925.88 | F18: kr.
B19: Ekstraordinære effektiviseringsgevinster anvendt til takstnedsættelse
B20: Ekstraordinær effektiviseringsgevinst anvendt til takstnedsættelse | C20: 0 | D20: kr. | E20: =-C20 -> 0 | F20: kr.
B21: Korrektion af ikke opkrævet tillæg fra 2011 i prisloft 2013
B22: Korrektion af ikke opkrævet tillæg fra 2011 i prisloft 2013 | C22: 0 | D22: kr. | E22: =-C22 -> 0 | F22: kr.
B23: Indtægter fra primære aktiviteter mv.
B24: Indtægter fra kubikmetertakster, faste takster, særbidrag, målergebyrer samt andre takster og gebyrer | C24: 108437000 | D24: kr.
B25: Andre indtægter i prisloftåret, som selskabet har opnået i forbindelse med eller som følge af selskabets primære aktiviteter | C25: 1004000 | D25: kr.
B26: Indtægter fra primære aktiviteter mv. i alt | C26: =SUM(C24:C25) -> 109441000 | D26: kr. | E26: =-C26 -> -109441000 | F26: kr.
B27: Tillæg/fradrag i prisloftet for 2015 i alt | E27: =E7+E18+E20+E22+E26 -> 3258681.119 | F27: kr.
B31: Oversigt over ekstraordinære effektiviseringsgevinster
C33: 2012 | E33: 2013 | G33: 2014 | I33: 2015 | K33: 2016
B34: Indhentet ekstraordinær effektiviseringsgevinst | C34: 6398128 | D34: kr. | E34: 8025548.383 | F34: kr. | H34: kr. | J34: kr. | L34: kr.
B35: Gevinst anvendt til investeringer | C35: 0 | D35: kr. | E35: =C38+E34 -> 14423676.38 | F35: kr. | H35: kr. | J35: kr. | L35: kr.
B36: Gevinst anvendt til takstnedsættelse | C36: 0 | D36: kr. | E36: 0 | F36: kr. | H36: kr. | J36: kr. | L36: kr.
B37: Korrektion for effektiviseringsgevinst der ikke er anvendt inden 4 år | C37: 0 | D37: kr. | E37: 0 | F37: kr. | H37: kr. | J37: kr. | K37: =IF(C38>SUM(E35:I36),C38-SUM(E35:I36),0)*-1 -> 0 | L37: kr.
B38: Resterende gevinst | C38: =C34-C35-C36 -> 6398128 | D38: kr. | E38: =C38+E34-E35-E36 -> 0 | F38: kr. | G38: =E38+G34-G35-G36 -> 0 | H38: kr. | I38: =G38+I34-I35-I36 -> 0 | J38: kr. | K38: =K34-K35-K36+K37+I38 -> 0 | L38: kr.
